[Event "Titled Tuesday Blitz January 03 Early 2023"]
[White "Papp, Levente"]
[Black "Kobalia, Mikhail"]
[WhiteFideId "751243"]
[BlackFideId "4119150"]
[WhiteElo "2353"]
[BlackElo "2578"]
[Result "0-1"]
[Round "11"]
[TimeControl "180+2"]
[Date "2023.01.03"]
[WhiteClock "0:00:04"]
[BlackClock "0:00:20"]

1. c4 {[%clk 0:02:55]}  g6 {[%clk 0:02:58]} 2. g3 {[%clk 0:02:55]}  Bg7 {[%clk 0:02:58]} 3. Bg2 {[%clk 0:02:56]}  f5 {[%clk 0:02:59]} 4. Nf3 {[%clk 0:02:42]}  Nf6 {[%clk 0:02:59]} 5. O-O {[%clk 0:02:42]}  O-O {[%clk 0:02:59]} 6. d3 {[%clk 0:02:41]}  d6 {[%clk 0:02:58]} 7. Nc3 {[%clk 0:02:39]}  e5 {[%clk 0:02:57]} 8. e4 {[%clk 0:02:38]}  Nc6 {[%clk 0:02:54]} 9. Bg5 {[%clk 0:02:24]}  h6 {[%clk 0:02:53]} 10. Bxf6 {[%clk 0:02:25]}  Qxf6 {[%clk 0:02:53]} 11. Nd5 {[%clk 0:02:17]}  Qf7 {[%clk 0:02:52]} 12. b4 {[%clk 0:02:09]}  Nd8 {[%clk 0:02:51]} 13. Nc3 {[%clk 0:01:59]}  f4 {[%clk 0:02:49]} 14. Nd2 {[%clk 0:01:26]}  g5 {[%clk 0:02:47]} 15. Bf3 {[%clk 0:01:22]}  Ne6 {[%clk 0:02:45]} 16. Bh5 {[%clk 0:01:15]}  Qf6 {[%clk 0:02:45]} 17. Nb3 {[%clk 0:01:07]}  c6 {[%clk 0:02:26]} 18. f3 {[%clk 0:00:54]}  Nd4 {[%clk 0:02:22]} 19. Nxd4 {[%clk 0:00:39]}  exd4 {[%clk 0:02:23]} 20. Ne2 {[%clk 0:00:39]}  Qe7 {[%clk 0:02:23]} 21. Kh1 {[%clk 0:00:29]}  Be5 {[%clk 0:02:22]} 22. gxf4 {[%clk 0:00:25]}  Bxf4 {[%clk 0:02:19]} 23. Bg4 {[%clk 0:00:08]}  Be5 {[%clk 0:02:13]} 24. Ng3 {[%clk 0:00:07]}  Bxg3 {[%clk 0:00:44]} 25. hxg3 {[%clk 0:00:07]}  a5 {[%clk 0:00:45]} 26. a3 {[%clk 0:00:06]}  Bxg4 {[%clk 0:00:34]} 27. fxg4 {[%clk 0:00:06]}  Rxf1+ {[%clk 0:00:33]} 28. Qxf1 {[%clk 0:00:07]}  Qe6 {[%clk 0:00:33]} 29. bxa5 {[%clk 0:00:04]}  Qxg4 {[%clk 0:00:32]} 30. Qg2 {[%clk 0:00:02]}  Rf8 {[%clk 0:00:29]} 31. Rg1 {[%clk 0:00:02]}  Rf3 {[%clk 0:00:27]} 32. Qh2 {[%clk 0:00:02]}  Kg7 {[%clk 0:00:25]} 33. Qg2 {[%clk 0:00:02]}  Rxd3 {[%clk 0:00:24]} 34. a6 {[%clk 0:00:02]}  bxa6 {[%clk 0:00:23]} 35. e5 {[%clk 0:00:03]}  dxe5 {[%clk 0:00:22]} 36. Kh2 {[%clk 0:00:03]}  Qh5+ {[%clk 0:00:19]} 37. Qh3 {[%clk 0:00:03]}  Rd2+ {[%clk 0:00:19]} 38. Rg2 {[%clk 0:00:03]}  Qxh3+ {[%clk 0:00:19]} 39. Kxh3 {[%clk 0:00:03]}  Rxg2 {[%clk 0:00:19]} 40. Kxg2 {[%clk 0:00:04]}  g4 {[%clk 0:00:20]} 0-1


[Site "https://www.chess.com"]

[Event "Titled Tuesday Blitz January 03 Early 2023"]
[White "Shipov, Sergei"]
[Black "Freitag, Manfred"]
[WhiteFideId "4113624"]
[BlackFideId "1602004"]
[WhiteElo "2541"]
[BlackElo "2352"]
[Result "1-0"]
[Round "11"]
[TimeControl "180+2"]
[Date "2023.01.03"]
[WhiteClock "0:00:18"]
[BlackClock "0:00:05"]

1. d4 {[%clk 0:03:00]}  Nf6 {[%clk 0:02:56]} 2. c4 {[%clk 0:03:01]}  g6 {[%clk 0:02:57]} 3. Nc3 {[%clk 0:03:01]}  Bg7 {[%clk 0:02:57]} 4. e4 {[%clk 0:03:01]}  d6 {[%clk 0:02:58]} 5. Be2 {[%clk 0:03:01]}  O-O {[%clk 0:02:59]} 6. Nf3 {[%clk 0:03:01]}  e5 {[%clk 0:02:59]} 7. Be3 {[%clk 0:03:01]}  exd4 {[%clk 0:02:59]} 8. Nxd4 {[%clk 0:03:01]}  Re8 {[%clk 0:03:00]} 9. f3 {[%clk 0:03:02]}  c6 {[%clk 0:03:00]} 10. Bf2 {[%clk 0:03:03]}  d5 {[%clk 0:03:01]} 11. exd5 {[%clk 0:03:03]}  cxd5 {[%clk 0:03:01]} 12. O-O {[%clk 0:03:04]}  Nc6 {[%clk 0:03:02]} 13. c5 {[%clk 0:03:04]}  Nh5 {[%clk 0:03:00]} 14. Qd2 {[%clk 0:03:05]}  Be5 {[%clk 0:02:56]} 15. g3 {[%clk 0:03:04]}  Bh3 {[%clk 0:02:55]} 16. Rfe1 {[%clk 0:03:02]}  Ng7 {[%clk 0:02:51]} 17. Bb5 {[%clk 0:03:02]}  Bxd4 {[%clk 0:02:46]} 18. Rxe8+ {[%clk 0:02:43]}  Qxe8 {[%clk 0:02:37]} 19. Bxd4 {[%clk 0:02:42]}  Nxd4 {[%clk 0:02:32]} 20. Qxd4 {[%clk 0:02:40]}  Nf5 {[%clk 0:02:29]} 21. Qd2 {[%clk 0:02:27]}  Qe7 {[%clk 0:02:24]} 22. b4 {[%clk 0:02:24]}  Rd8 {[%clk 0:02:24]} 23. Re1 {[%clk 0:02:22]}  Qf6 {[%clk 0:02:03]} 24. Nxd5 {[%clk 0:02:14]}  Kg7 {[%clk 0:02:03]} 25. Rd1 {[%clk 0:01:28]}  Qe5 {[%clk 0:01:54]} 26. Bc4 {[%clk 0:01:25]}  Nxg3 {[%clk 0:00:27]} 27. hxg3 {[%clk 0:00:45]}  Qxg3+ {[%clk 0:00:26]} 28. Kh1 {[%clk 0:00:45]}  Qxf3+ {[%clk 0:00:17]} 29. Kh2 {[%clk 0:00:45]}  Be6 {[%clk 0:00:08]} 30. Qd4+ {[%clk 0:00:42]}  f6 {[%clk 0:00:08]} 31. Rd3 {[%clk 0:00:38]}  Qe2+ {[%clk 0:00:07]} 32. Kg1 {[%clk 0:00:38]}  Qe1+ {[%clk 0:00:06]} 33. Kg2 {[%clk 0:00:38]}  Qe2+ {[%clk 0:00:06]} 34. Kg3 {[%clk 0:00:36]}  Qe1+ {[%clk 0:00:06]} 35. Qf2 {[%clk 0:00:35]}  Qe5+ {[%clk 0:00:06]} 36. Qf4 {[%clk 0:00:34]}  Qe1+ {[%clk 0:00:06]} 37. Kg2 {[%clk 0:00:27]}  Qe2+ {[%clk 0:00:07]} 38. Kg1 {[%clk 0:00:26]}  Qe1+ {[%clk 0:00:07]} 39. Qf1 {[%clk 0:00:26]}  Qxf1+ {[%clk 0:00:07]} 40. Kxf1 {[%clk 0:00:26]}  h5 {[%clk 0:00:07]} 41. Ke2 {[%clk 0:00:25]}  h4 {[%clk 0:00:07]} 42. b5 {[%clk 0:00:21]}  g5 {[%clk 0:00:07]} 43. c6 {[%clk 0:00:21]}  bxc6 {[%clk 0:00:07]} 44. bxc6 {[%clk 0:00:22]}  Rc8 {[%clk 0:00:08]} 45. Bb5 {[%clk 0:00:21]}  h3 {[%clk 0:00:07]} 46. Kf3 {[%clk 0:00:21]}  f5 {[%clk 0:00:05]} 47. Ne3 {[%clk 0:00:18]}  f4 {[%clk 0:00:05]} 48. Ng4 {[%clk 0:00:18]} 1-0


[Site "https://www.chess.com"]

[Event "Titled Tuesday Blitz January 03 Early 2023"]
[White "Harsh Suresh"]
[Black "Aldokhin, Ivan"]
[WhiteFideId "45018464"]
[BlackFideId "24115720"]
[WhiteElo "2298"]
[BlackElo "2413"]
[Result "1/2-1/2"]
[Round "11"]
[TimeControl "180+2"]
[Date "2023.01.03"]
[WhiteClock "0:00:07"]
[BlackClock "0:00:03"]

1. e4 {[%clk 0:03:00]}  c5 {[%clk 0:02:09]} 2. Nc3 {[%clk 0:02:58]}  e6 {[%clk 0:02:08]} 3. f4 {[%clk 0:02:52]}  Nc6 {[%clk 0:02:08]} 4. Nf3 {[%clk 0:02:53]}  d5 {[%clk 0:02:08]} 5. Bb5 {[%clk 0:02:52]}  Ne7 {[%clk 0:02:09]} 6. O-O {[%clk 0:02:52]}  d4 {[%clk 0:02:09]} 7. Ne2 {[%clk 0:02:49]}  a6 {[%clk 0:02:09]} 8. Bxc6+ {[%clk 0:02:48]}  Nxc6 {[%clk 0:02:10]} 9. d3 {[%clk 0:02:48]}  Be7 {[%clk 0:02:11]} 10. Qe1 {[%clk 0:02:35]}  c4 {[%clk 0:02:10]} 11. Bd2 {[%clk 0:02:31]}  cxd3 {[%clk 0:02:10]} 12. cxd3 {[%clk 0:02:31]}  Qb6 {[%clk 0:02:11]} 13. b3 {[%clk 0:02:24]}  Bd7 {[%clk 0:02:11]} 14. Qf2 {[%clk 0:02:23]}  O-O {[%clk 0:02:01]} 15. Nexd4 {[%clk 0:02:13]}  Nxd4 {[%clk 0:02:01]} 16. Nxd4 {[%clk 0:02:13]}  Bc5 {[%clk 0:02:01]} 17. Be3 {[%clk 0:02:11]}  Bb5 {[%clk 0:02:01]} 18. Rfc1 {[%clk 0:01:51]}  Bxd3 {[%clk 0:01:23]} 19. Rxc5 {[%clk 0:01:35]}  Qxc5 {[%clk 0:01:23]} 20. Nxe6 {[%clk 0:01:36]}  Qc6 {[%clk 0:01:23]} 21. Nxf8 {[%clk 0:01:35]}  Bxe4 {[%clk 0:00:54]} 22. Rc1 {[%clk 0:01:29]}  Qe8 {[%clk 0:00:51]} 23. Bc5 {[%clk 0:01:26]}  Rc8 {[%clk 0:00:51]} 24. Qe3 {[%clk 0:01:20]}  f5 {[%clk 0:00:40]} 25. Ba3 {[%clk 0:01:15]}  Rd8 {[%clk 0:00:33]} 26. h3 {[%clk 0:00:47]}  Rd3 {[%clk 0:00:33]} 27. Qf2 {[%clk 0:00:45]}  b6 {[%clk 0:00:19]} 28. Rc7 {[%clk 0:00:39]}  Qd8 {[%clk 0:00:17]} 29. Qxb6 {[%clk 0:00:32]}  Rd1+ {[%clk 0:00:12]} 30. Kh2 {[%clk 0:00:33]}  Rd2 {[%clk 0:00:04]} 31. Rxg7+ {[%clk 0:00:11]}  Kxg7 {[%clk 0:00:04]} 32. Ne6+ {[%clk 0:00:10]}  Kg8 {[%clk 0:00:02]} 33. Nxd8 {[%clk 0:00:06]}  Rxg2+ {[%clk 0:00:03]} 34. Kh1 {[%clk 0:00:07]}  Rg3+ {[%clk 0:00:03]} 35. Kh2 {[%clk 0:00:06]}  Rg2+ {[%clk 0:00:03]} 36. Kh1 {[%clk 0:00:07]}  Rg3+ {[%clk 0:00:02]} 37. Kh2 {[%clk 0:00:07]}  Rg2+ {[%clk 0:00:03]} 1/2-1/2


[Site "https://www.chess.com"]

[Event "Titled Tuesday Blitz January 03 Early 2023"]
[White "Rozman, Levy"]
[Black "Iskusnyh, Sergei"]
[WhiteFideId "2039877"]
[BlackFideId "4120027"]
[WhiteElo "2322"]
[BlackElo "2440"]
[Result "1-0"]
[Round "11"]
[TimeControl "180+2"]
[Date "2023.01.03"]
[WhiteClock "0:00:12"]
[BlackClock "0:00:05"]

1. d4 {[%clk 0:03:00]}  d5 {[%clk 0:02:59]} 2. Bg5 {[%clk 0:03:00]}  h6 {[%clk 0:02:58]} 3. Bh4 {[%clk 0:03:00]}  c5 {[%clk 0:02:58]} 4. dxc5 {[%clk 0:02:59]}  g5 {[%clk 0:02:58]} 5. Bg3 {[%clk 0:02:59]}  Bg7 {[%clk 0:02:58]} 6. c3 {[%clk 0:02:59]}  Nc6 {[%clk 0:02:48]} 7. e3 {[%clk 0:02:52]}  e5 {[%clk 0:02:48]} 8. Nf3 {[%clk 0:02:45]}  Nge7 {[%clk 0:02:46]} 9. Na3 {[%clk 0:02:34]}  O-O {[%clk 0:02:44]} 10. Qa4 {[%clk 0:02:02]}  b6 {[%clk 0:02:36]} 11. cxb6 {[%clk 0:01:54]}  Qxb6 {[%clk 0:02:34]} 12. Qb5 {[%clk 0:01:54]}  Qc7 {[%clk 0:02:29]} 13. Qc5 {[%clk 0:01:44]}  Be6 {[%clk 0:02:17]} 14. h4 {[%clk 0:01:37]}  g4 {[%clk 0:02:02]} 15. Nd4 {[%clk 0:01:36]}  Rac8 {[%clk 0:01:52]} 16. Nxe6 {[%clk 0:01:30]}  fxe6 {[%clk 0:01:52]} 17. Be2 {[%clk 0:01:30]}  h5 {[%clk 0:01:50]} 18. Nb5 {[%clk 0:01:27]}  Qb8 {[%clk 0:01:38]} 19. Qd6 {[%clk 0:01:25]}  Qxd6 {[%clk 0:01:28]} 20. Nxd6 {[%clk 0:01:26]}  Rb8 {[%clk 0:01:28]} 21. O-O-O {[%clk 0:01:24]}  Rfd8 {[%clk 0:01:21]} 22. Nb5 {[%clk 0:01:22]}  Nf5 {[%clk 0:01:21]} 23. e4 {[%clk 0:01:12]}  Nxg3 {[%clk 0:01:16]} 24. fxg3 {[%clk 0:01:13]}  d4 {[%clk 0:00:58]} 25. Bc4 {[%clk 0:01:11]}  Kf7 {[%clk 0:00:52]} 26. Nc7 {[%clk 0:01:08]}  dxc3 {[%clk 0:00:49]} 27. bxc3 {[%clk 0:01:06]}  Ke7 {[%clk 0:00:33]} 28. Nxe6 {[%clk 0:01:02]}  Bh6+ {[%clk 0:00:34]} 29. Ng5 {[%clk 0:01:00]}  Rdc8 {[%clk 0:00:26]} 30. Bd5 {[%clk 0:00:51]}  Nb4 {[%clk 0:00:25]} 31. Kd2 {[%clk 0:00:39]}  Nxd5 {[%clk 0:00:23]} 32. exd5 {[%clk 0:00:40]}  Rb2+ {[%clk 0:00:21]} 33. Kd3 {[%clk 0:00:41]}  Rxg2 {[%clk 0:00:21]} 34. Ne4 {[%clk 0:00:38]}  Rf8 {[%clk 0:00:19]} 35. Rb1 {[%clk 0:00:28]}  Rf3+ {[%clk 0:00:18]} 36. Kc4 {[%clk 0:00:29]}  Re2 {[%clk 0:00:18]} 37. Rb7+ {[%clk 0:00:28]}  Kd8 {[%clk 0:00:18]} 38. Nc5 {[%clk 0:00:25]}  Bd2 {[%clk 0:00:16]} 39. d6 {[%clk 0:00:21]}  Rxc3+ {[%clk 0:00:15]} 40. Kd5 {[%clk 0:00:22]}  Rxc5+ {[%clk 0:00:13]} 41. Kxc5 {[%clk 0:00:22]}  Be3+ {[%clk 0:00:09]} 42. Kd5 {[%clk 0:00:22]}  Bb6 {[%clk 0:00:08]} 43. Ke6 {[%clk 0:00:20]}  Kc8 {[%clk 0:00:07]} 44. Rh7 {[%clk 0:00:20]}  Rd2 {[%clk 0:00:07]} 45. Rc1+ {[%clk 0:00:20]}  Kb8 {[%clk 0:00:07]} 46. Kxe5 {[%clk 0:00:17]}  Re2+ {[%clk 0:00:04]} 47. Kd5 {[%clk 0:00:15]}  Rd2+ {[%clk 0:00:05]} 48. Kc6 {[%clk 0:00:15]}  Rc2+ {[%clk 0:00:05]} 49. Rxc2 {[%clk 0:00:12]} 1-0


[Site "https://www.chess.com"]

[Event "Titled Tuesday Blitz January 03 Early 2023"]
[White "Ordekalog"]
[Black "Koutlas, Nikolaos"]
[BlackFideId "25827138"]
[WhiteElo "2701"]
[BlackElo "2341"]
[Result "0-1"]
[Round "11"]
[TimeControl "180+2"]
[Date "2023.01.03"]
[WhiteClock "0:00:32"]
[BlackClock "0:00:50"]

1. e4 {[%clk 0:03:00]}  e6 {[%clk 0:02:53]} 2. d4 {[%clk 0:03:00]}  d5 {[%clk 0:02:54]} 3. Nc3 {[%clk 0:02:59]}  h6 {[%clk 0:02:53]} 4. Bd3 {[%clk 0:02:57]}  Nf6 {[%clk 0:02:48]} 5. e5 {[%clk 0:02:53]}  Nfd7 {[%clk 0:02:48]} 6. f4 {[%clk 0:02:52]}  c5 {[%clk 0:02:48]} 7. Nf3 {[%clk 0:02:52]}  Nc6 {[%clk 0:02:47]} 8. dxc5 {[%clk 0:02:51]}  Nxc5 {[%clk 0:02:46]} 9. O-O {[%clk 0:02:48]}  Nxd3 {[%clk 0:02:46]} 10. Qxd3 {[%clk 0:02:48]}  Bc5+ {[%clk 0:02:44]} 11. Kh1 {[%clk 0:02:42]}  O-O {[%clk 0:02:43]} 12. Ne2 {[%clk 0:02:39]}  a5 {[%clk 0:02:41]} 13. Be3 {[%clk 0:02:34]}  b6 {[%clk 0:02:30]} 14. Bxc5 {[%clk 0:02:05]}  bxc5 {[%clk 0:02:19]} 15. Qe3 {[%clk 0:01:47]}  Ba6 {[%clk 0:02:14]} 16. Rfd1 {[%clk 0:01:42]}  d4 {[%clk 0:02:11]} 17. Qe4 {[%clk 0:01:39]}  Qd5 {[%clk 0:02:08]} 18. Ng3 {[%clk 0:01:38]}  Nb4 {[%clk 0:02:06]} 19. Rd2 {[%clk 0:01:34]}  Rab8 {[%clk 0:01:59]} 20. a3 {[%clk 0:01:23]}  Qxe4 {[%clk 0:01:51]} 21. Nxe4 {[%clk 0:01:24]}  Nxc2 {[%clk 0:01:51]} 22. Rxc2 {[%clk 0:01:15]}  Bd3 {[%clk 0:01:50]} 23. Rxc5 {[%clk 0:01:14]}  Bxe4 {[%clk 0:01:50]} 24. Nxd4 {[%clk 0:01:14]}  Rxb2 {[%clk 0:01:49]} 25. Rg1 {[%clk 0:01:13]}  Rd8 {[%clk 0:01:47]} 26. Rc4 {[%clk 0:01:10]}  Bd5 {[%clk 0:01:31]} 27. Ra4 {[%clk 0:01:09]}  Bb7 {[%clk 0:01:27]} 28. h3 {[%clk 0:01:03]}  Rd2 {[%clk 0:01:24]} 29. Nb3 {[%clk 0:01:02]}  R2d3 {[%clk 0:01:23]} 30. Kh2 {[%clk 0:00:54]}  Rxb3 {[%clk 0:01:22]} 31. Rxa5 {[%clk 0:00:54]}  Rd2 {[%clk 0:01:15]} 32. Ra7 {[%clk 0:00:41]}  Rbb2 {[%clk 0:01:12]} 33. h4 {[%clk 0:00:38]}  Bxg2 {[%clk 0:01:06]} 34. a4 {[%clk 0:00:35]}  Be4+ {[%clk 0:00:52]} 35. Kh3 {[%clk 0:00:32]}  Bf5+ {[%clk 0:00:50]} 0-1


[Site "https://www.chess.com"]

[Event "Titled Tuesday Blitz January 03 Early 2023"]
[White "Skvortsov, Andrei"]
[Black "Fiorito, Francisco"]
[WhiteFideId "24108600"]
[BlackFideId "180165"]
[WhiteElo "2313"]
[BlackElo "2305"]
[Result "0-1"]
[Round "11"]
[TimeControl "180+2"]
[Date "2023.01.03"]
[WhiteClock "0:00:03"]
[BlackClock "0:00:28"]

1. d4 {[%clk 0:03:00]}  Nf6 {[%clk 0:02:57]} 2. c4 {[%clk 0:03:00]}  b6 {[%clk 0:02:46]} 3. f3 {[%clk 0:02:57]}  Nc6 {[%clk 0:02:45]} 4. d5 {[%clk 0:02:53]}  Ne5 {[%clk 0:02:45]} 5. e4 {[%clk 0:02:51]}  e6 {[%clk 0:02:44]} 6. Nc3 {[%clk 0:02:42]}  Bc5 {[%clk 0:02:43]} 7. Nge2 {[%clk 0:02:33]}  Nxc4 {[%clk 0:02:33]} 8. Nd4 {[%clk 0:02:23]}  exd5 {[%clk 0:02:30]} 9. Nxd5 {[%clk 0:02:14]}  Nxd5 {[%clk 0:02:29]} 10. Bxc4 {[%clk 0:02:14]}  Nf6 {[%clk 0:02:20]} 11. Nf5 {[%clk 0:01:58]}  O-O {[%clk 0:02:20]} 12. Bg5 {[%clk 0:01:48]}  h6 {[%clk 0:02:09]} 13. Qc1 {[%clk 0:01:28]}  d5 {[%clk 0:01:54]} 14. Nxg7 {[%clk 0:01:02]}  hxg5 {[%clk 0:01:36]} 15. Qxg5 {[%clk 0:01:01]}  Nxe4 {[%clk 0:01:28]} 16. Qf4 {[%clk 0:00:20]}  Qf6 {[%clk 0:00:53]} 17. Nh5 {[%clk 0:00:07]}  Qxf4 {[%clk 0:00:47]} 18. Nxf4 {[%clk 0:00:07]}  Nf2 {[%clk 0:00:37]} 19. Bxd5 {[%clk 0:00:07]}  Re8+ {[%clk 0:00:30]} 20. Kf1 {[%clk 0:00:03]}  Ba6+ {[%clk 0:00:29]} 21. Kg1 {[%clk 0:00:03]}  Nh3# {[%clk 0:00:28]} 0-1


[Site "https://www.chess.com"]

[Event "Titled Tuesday Blitz January 03 Early 2023"]
[White "Blokhin, Sofia"]
[Black "Liyanage, Ranindu Dilshan"]
[WhiteFideId "4508190"]
[BlackFideId "9915834"]
[WhiteElo "2062"]
[BlackElo "2342"]
[Result "0-1"]
[Round "11"]
[TimeControl "180+2"]
[Date "2023.01.03"]
[WhiteClock "0:00:01"]
[BlackClock "0:00:07"]

1. d4 {[%clk 0:03:00]}  Nf6 {[%clk 0:02:59]} 2. c4 {[%clk 0:03:00]}  e6 {[%clk 0:03:00]} 3. Nc3 {[%clk 0:02:59]}  Bb4 {[%clk 0:02:58]} 4. f3 {[%clk 0:03:00]}  c5 {[%clk 0:02:55]} 5. a3 {[%clk 0:02:58]}  Bxc3+ {[%clk 0:02:53]} 6. bxc3 {[%clk 0:02:59]}  d5 {[%clk 0:02:54]} 7. cxd5 {[%clk 0:02:48]}  Nxd5 {[%clk 0:02:55]} 8. Qc2 {[%clk 0:02:38]}  f5 {[%clk 0:02:52]} 9. Nh3 {[%clk 0:02:31]}  O-O {[%clk 0:02:44]} 10. Bg5 {[%clk 0:02:29]}  Qa5 {[%clk 0:02:43]} 11. Bd2 {[%clk 0:02:25]}  Qc7 {[%clk 0:02:42]} 12. c4 {[%clk 0:02:19]}  cxd4 {[%clk 0:02:40]} 13. Qd3 {[%clk 0:02:05]}  Nb6 {[%clk 0:02:30]} 14. c5 {[%clk 0:01:46]}  N6d7 {[%clk 0:02:20]} 15. Qxd4 {[%clk 0:01:42]}  Nxc5 {[%clk 0:02:11]} 16. Rc1 {[%clk 0:01:33]}  b6 {[%clk 0:02:10]} 17. Bf4 {[%clk 0:01:26]}  Qb7 {[%clk 0:01:58]} 18. Bd6 {[%clk 0:01:21]}  Rd8 {[%clk 0:01:57]} 19. Qe5 {[%clk 0:01:10]}  Nc6 {[%clk 0:01:52]} 20. Qg3 {[%clk 0:01:06]}  Bd7 {[%clk 0:01:34]} 21. e3 {[%clk 0:01:04]}  Be8 {[%clk 0:01:26]} 22. Be2 {[%clk 0:01:02]}  Qd7 {[%clk 0:01:16]} 23. Rd1 {[%clk 0:00:59]}  Qb7 {[%clk 0:01:06]} 24. O-O {[%clk 0:00:55]}  Rd7 {[%clk 0:00:53]} 25. Bc4 {[%clk 0:00:54]}  Bf7 {[%clk 0:00:50]} 26. Ng5 {[%clk 0:00:52]}  Re8 {[%clk 0:00:49]} 27. Qh3 {[%clk 0:00:43]}  h6 {[%clk 0:00:47]} 28. Nxf7 {[%clk 0:00:37]}  Rxf7 {[%clk 0:00:48]} 29. Rb1 {[%clk 0:00:30]}  Qc8 {[%clk 0:00:44]} 30. Rfd1 {[%clk 0:00:23]}  Nb7 {[%clk 0:00:26]} 31. Ba6 {[%clk 0:00:20]}  Qa8 {[%clk 0:00:21]} 32. Bf4 {[%clk 0:00:16]}  e5 {[%clk 0:00:19]} 33. Bg3 {[%clk 0:00:15]}  Nba5 {[%clk 0:00:19]} 34. Be1 {[%clk 0:00:14]}  Kh8 {[%clk 0:00:17]} 35. Rbc1 {[%clk 0:00:12]}  f4 {[%clk 0:00:14]} 36. Bb5 {[%clk 0:00:09]}  Rc8 {[%clk 0:00:10]} 37. Bxa5 {[%clk 0:00:06]}  bxa5 {[%clk 0:00:11]} 38. Qe6 {[%clk 0:00:05]}  Rfc7 {[%clk 0:00:10]} 39. Qd6 {[%clk 0:00:01]}  fxe3 {[%clk 0:00:07]} 0-1


[Site "https://www.chess.com"]

[Event "Titled Tuesday Blitz January 03 Early 2023"]
[White "Jobava, Baadur"]
[Black "Yeritsyan, Hayk"]
[WhiteFideId "13601520"]
[BlackFideId "13307320"]
[WhiteElo "2578"]
[BlackElo "2241"]
[Result "1-0"]
[Round "11"]
[TimeControl "180+2"]
[Date "2023.01.03"]
[WhiteClock "0:01:35"]
[BlackClock "0:00:04"]

1. b3 {[%clk 0:03:00]}  e5 {[%clk 0:02:59]} 2. Bb2 {[%clk 0:03:01]}  Nc6 {[%clk 0:02:59]} 3. Nf3 {[%clk 0:03:02]}  Bd6 {[%clk 0:02:58]} 4. e3 {[%clk 0:03:02]}  Nf6 {[%clk 0:02:58]} 5. d3 {[%clk 0:03:02]}  O-O {[%clk 0:02:58]} 6. Nbd2 {[%clk 0:03:03]}  Re8 {[%clk 0:02:42]} 7. Be2 {[%clk 0:03:03]}  Bf8 {[%clk 0:02:40]} 8. c4 {[%clk 0:03:04]}  d6 {[%clk 0:02:36]} 9. O-O {[%clk 0:03:04]}  g6 {[%clk 0:02:35]} 10. a3 {[%clk 0:03:04]}  a5 {[%clk 0:02:33]} 11. Re1 {[%clk 0:03:04]}  Bf5 {[%clk 0:02:31]} 12. Bf1 {[%clk 0:03:05]}  Bg7 {[%clk 0:02:30]} 13. h3 {[%clk 0:03:03]}  Nd7 {[%clk 0:02:29]} 14. d4 {[%clk 0:02:57]}  exd4 {[%clk 0:02:22]} 15. exd4 {[%clk 0:02:58]}  Rxe1 {[%clk 0:02:21]} 16. Qxe1 {[%clk 0:02:59]}  Nb6 {[%clk 0:02:13]} 17. Qe3 {[%clk 0:02:58]}  Qf8 {[%clk 0:01:50]} 18. Re1 {[%clk 0:02:57]}  Bd7 {[%clk 0:01:34]} 19. Ne4 {[%clk 0:02:49]}  Re8 {[%clk 0:01:31]} 20. Qd2 {[%clk 0:02:49]}  d5 {[%clk 0:01:29]} 21. Nc5 {[%clk 0:02:49]}  Bc8 {[%clk 0:01:28]} 22. Rxe8 {[%clk 0:02:39]}  Qxe8 {[%clk 0:01:28]} 23. Bc3 {[%clk 0:02:39]}  a4 {[%clk 0:01:24]} 24. Nxa4 {[%clk 0:02:36]}  Nxa4 {[%clk 0:01:22]} 25. bxa4 {[%clk 0:02:37]}  Be6 {[%clk 0:01:21]} 26. c5 {[%clk 0:02:35]}  h6 {[%clk 0:01:20]} 27. a5 {[%clk 0:02:34]}  Ne7 {[%clk 0:01:18]} 28. Qb2 {[%clk 0:02:31]}  Bc8 {[%clk 0:01:15]} 29. Qb5 {[%clk 0:02:24]}  Qd8 {[%clk 0:01:11]} 30. a6 {[%clk 0:02:20]}  bxa6 {[%clk 0:01:10]} 31. Qb8 {[%clk 0:02:21]}  Nc6 {[%clk 0:00:44]} 32. Qa8 {[%clk 0:02:20]}  Ne7 {[%clk 0:00:15]} 33. Bxa6 {[%clk 0:02:18]}  Kh7 {[%clk 0:00:15]} 34. Bxc8 {[%clk 0:02:18]}  Nxc8 {[%clk 0:00:16]} 35. a4 {[%clk 0:02:16]}  Qd7 {[%clk 0:00:16]} 36. a5 {[%clk 0:02:15]}  Ne7 {[%clk 0:00:16]} 37. Qb7 {[%clk 0:02:12]}  Qa4 {[%clk 0:00:15]} 38. Qxc7 {[%clk 0:02:11]}  Nf5 {[%clk 0:00:14]} 39. Qxf7 {[%clk 0:02:08]}  Qd1+ {[%clk 0:00:12]} 40. Kh2 {[%clk 0:02:09]}  Qd3 {[%clk 0:00:13]} 41. Ne5 {[%clk 0:02:06]}  Qxc3 {[%clk 0:00:10]} 42. Qxg6+ {[%clk 0:02:04]}  Kg8 {[%clk 0:00:11]} 43. Qf7+ {[%clk 0:02:04]}  Kh8 {[%clk 0:00:10]} 44. Qxf5 {[%clk 0:02:04]}  Qxd4 {[%clk 0:00:09]} 45. f4 {[%clk 0:02:03]}  Qe3 {[%clk 0:00:08]} 46. a6 {[%clk 0:02:01]}  Qxc5 {[%clk 0:00:08]} 47. Qd7 {[%clk 0:01:45]}  Qd4 {[%clk 0:00:06]} 48. Ng6+ {[%clk 0:01:35]}  Kh7 {[%clk 0:00:06]} 49. a7 {[%clk 0:01:35]}  Kxg6 {[%clk 0:00:07]} 50. Qg4+ {[%clk 0:01:35]}  Kh7 {[%clk 0:00:04]} 51. a8=Q {[%clk 0:01:35]} 1-0


[Site "https://www.chess.com"]